bitfinex-derivatives/quotes_ETHF0:USTF0_20260113
["timestamp","ask_amount","ask_price","bid_price","bid_amount"]
[1768273668566,0.96666313,3106.0,3105.2,1.11081544]
[1768273668764,3.36274396,3105.9,3105.2,0.00329176]
[1768273668970,3.36274396,3105.8,3104.9,0.0048292]
[1768273669166,0.96666313,3105.7,3104.9,0.0048292]
[1768273669859,3.36274396,3105.7,3104.9,0.00877095]
[1768273670067,0.96666313,3105.6,3104.9,0.00877095]
[1768273670265,0.96666313,3105.5,3104.3,1.10752368]
[1768273670466,0.96666313,3105.4,3104.5,1.10752368]
[1768273670666,0.0048292,3105.6,3104.0,3.82708925]
[1768273670867,0.96577639,3105.5,3104.3,1.10752368]
[1768273671063,3.36185722,3105.4,3103.5,4.04786941]
[1768273671264,3.36185722,3105.3,3104.1,1.10752368]
[1768273671579,0.96577639,3105.2,3104.1,1.10752368]
[1768273671776,2.39608083,3105.3,3104.1,1.10752368]
[1768273671978,0.96520637,3105.2,3104.1,1.10752368]
[1768273672166,2.39608083,3105.3,3104.1,1.10752368]
[1768273672363,0.96476917,3105.2,3104.1,1.10752368]
[1768273672568,2.39608083,3105.3,3104.1,1.10752368]
[1768273672775,0.96477153,3105.2,3104.1,1.10752368]
[1768273672974,2.39608083,3105.3,3104.1,1.10752368]
[1768273673179,2.39608083,3105.3,3104.3,1.10752368]
[1768273674382,2.39608083,3105.3,3104.1,1.10752368]
[1768273674575,0.9641543,3105.2,3104.1,1.10752368]
[1768273674776,2.39608083,3105.3,3104.1,1.10752368]
[1768273674973,0.96418511,3105.2,3104.1,1.10752368]
[1768273675479,2.39608083,3105.1,3103.8,1.10752368]
[1768273676377,1.10752368,3105.5,3103.5,1.10985482]
[1768273676378,2.39608083,3104.8,3103.5,1.10985482]
[1768273676578,0.96351831,3104.7,3103.5,1.10985482]
[1768273676778,3.35959914,3104.7,3103.5,1.10985482]
[1768273677084,2.39608083,3104.7,3103.5,1.10985482]
[1768273677470,3.35886191,3104.6,3103.5,0.00233114]
[1768273677683,2.39608083,3104.4,3103.5,0.00233114]
[1768273677872,0.96275151,3104.3,3103.5,0.00233114]
[1768273678073,2.39917035,3104.4,3103.5,0.00233114]
[1768273680276,0.00308952,3104.4,3103.5,0.00233114]
[1768273680777,0.00308952,3104.4,3103.6,1.10752368]
[1768273681483,0.00308952,3104.4,3103.5,0.00233114]
[1768273681682,0.00308952,3104.4,3103.6,1.10752368]
[1768273684185,0.00308952,3104.4,3103.5,0.00233114]
[1768273688890,3.51070991,3104.4,3103.5,0.00233114]
[1768273689090,2.40009671,3104.3,3103.5,0.00233114]
[1768273689886,1.10752368,3104.1,3103.5,0.00233114]
[1768273690094,2.40009671,3104.0,3102.6,1.10752368]
[1768273690992,2.40009671,3104.0,3102.6,1.10991913]
[1768273691891,0.0048292,3103.6,3102.6,1.10991913]
[1768273692592,0.0048292,3103.6,3102.9,1.10752368]
[1768273692790,0.0048292,3103.6,3103.2,1.10752368]
[1768273692992,0.00308952,3104.4,3103.2,1.10752368]
[1768273693293,0.95970041,3104.3,3103.2,1.10752368]
[1768273693491,2.24439599,3104.4,3103.2,1.10752368]
[1768273693693,0.95990181,3104.3,3103.2,1.10752368]
[1768273693881,2.24439599,3104.4,3103.2,1.10752368]
[1768273694086,3.20120751,3104.3,3103.2,1.10752368]
[1768273694293,2.24130647,3104.3,3103.2,1.10752368]
[1768273694685,0.00308952,3104.4,3103.5,1.10752368]
[1768273695086,0.00308952,3104.4,3103.6,1.10752368]
[1768273696094,0.00308952,3104.4,3103.9,1.10752368]
[1768273698899,0.00308952,3104.4,3103.6,1.10752368]
[1768273704022,0.00308952,3104.4,3103.3,2.37871395]
[1768273704219,0.00308952,3104.4,3103.6,1.10752368]
[1768273706720,0.00308952,3104.4,3103.3,2.37871395]
[1768273706920,2.24130647,3104.2,3102.9,0.1661592]
[1768273707117,3.34883015,3103.7,3102.9,0.0048292]
[1768273707313,0.96534074,3103.6,3102.9,0.0048292]
[1768273707520,0.96534074,3103.5,3102.9,0.0048292]
[1768273707714,0.96534074,3103.4,3102.6,0.00239545]
[1768273707915,0.96534074,3103.3,3102.6,0.00239545]
[1768273708214,0.96534074,3103.2,3102.6,0.00239545]
[1768273708519,2.24130647,3103.7,3102.1,1.10752368]
[1768273708720,0.96364137,3103.6,3102.4,1.10752368]
[1768273708919,0.96364137,3103.5,3102.4,1.10752368]
[1768273709120,0.96364137,3103.4,3102.4,1.10752368]
[1768273709324,0.96364137,3103.3,3102.4,1.11010537]
[1768273709520,2.24130647,3103.7,3102.4,1.11010537]
[1768273709723,0.96327029,3103.6,3102.4,1.11010537]
[1768273710030,2.24130647,3103.4,3102.4,0.00258169]
[1768273710324,2.24130647,3103.8,3102.4,1.11010537]
[1768273710514,0.96303299,3103.7,3102.4,1.11010537]
[1768273710715,0.96303299,3103.6,3102.4,1.11010537]
[1768273710915,0.96303299,3103.5,3102.4,1.11010537]
[1768273711110,0.96303299,3103.4,3102.4,1.11010537]
[1768273711311,0.0048292,3103.3,3102.4,0.00258169]
[1768273711516,0.0048292,3103.3,3102.5,1.10752368]
[1768273713628,0.0048292,3103.3,3102.4,0.00258169]
[1768273715628,0.0048292,3103.3,3102.6,1.10752368]
[1768273716026,0.0048292,3103.3,3102.9,1.10752368]
[1768273716221,0.0048292,3103.3,3102.4,0.00258169]
[1768273716426,0.0048292,3103.3,3102.8,1.10752368]
[1768273721328,3.48004674,3104.4,3102.8,1.10752368]
[1768273721524,0.96192349,3104.3,3103.1,1.10752368]
[1768273721725,0.96192349,3104.2,3103.1,1.10752368]
[1768273721921,0.96192349,3104.1,3103.1,1.10752368]
[1768273722131,0.96192349,3104.0,3103.1,1.10752368]
[1768273722336,0.96192349,3103.9,3103.1,1.10752368]
[1768273722530,2.36943354,3104.1,3102.7,0.0048292]
[1768273723033,2.36943354,3103.9,3102.7,0.0048292]
[1768273723226,0.96195294,3103.8,3102.7,0.0048292]
[1768273723424,2.36943354,3103.9,3102.7,0.0048292]
[1768273723624,0.96193855,3103.8,3102.7,0.0048292]
[1768273723931,2.36943354,3103.9,3102.7,0.0048292]
[1768273724131,0.96193662,3103.8,3102.7,0.0048292]
[1768273724333,2.36943354,3103.9,3102.7,0.0048292]
[1768273724533,0.96192558,3103.8,3102.7,0.0048292]
[1768273724837,2.36943354,3103.9,3102.7,0.0048292]
[1768273725332,1.10937183,3103.8,3102.9,1.10937183]
[1768273727336,2.36943354,3103.9,3102.9,1.10937183]
[1768273729035,1.10937183,3103.8,3102.9,1.10937183]
[1768273729633,3.47880537,3103.8,3102.9,1.10937183]
[1768273729823,3.47880537,3103.8,3102.7,0.0048292]
[1768273731737,3.47880537,3103.8,3102.8,1.10937183]
[1768273732341,0.9636989,3103.7,3102.8,1.10937183]
[1768273732550,3.47880537,3103.8,3102.8,1.10937183]
[1768273732838,0.96375924,3103.7,3102.8,1.10937183]
[1768273733140,3.47880537,3103.8,3102.8,1.10937183]
[1768273733327,0.96375998,3103.7,3102.8,1.10937183]
[1768273733528,3.47880537,3103.8,3102.8,1.10937183]
[1768273733730,0.9641301,3103.7,3102.8,1.10937183]
[1768273733939,3.47880537,3103.8,3102.8,1.10937183]
[1768273734241,0.96412686,3103.7,3103.0,1.10937183]
[1768273734539,3.47880537,3103.8,3103.0,1.10937183]
[1768273734839,0.96455719,3103.7,3103.0,1.10937183]
[1768273735039,3.47880537,3103.8,3103.0,1.10937183]
[1768273735243,0.96455837,3103.7,3103.0,1.10937183]
[1768273735441,0.96509068,3103.6,3103.0,1.10937183]
[1768273735638,3.47880537,3103.8,3103.0,1.10937183]
[1768273735845,0.96509068,3103.7,3102.7,0.0048292]
[1768273736038,0.96509068,3103.6,3102.9,1.10937183]
[1768273736240,3.47880537,3103.8,3102.9,1.10937183]
[1768273736444,0.96584951,3103.7,3102.9,1.10937183]
[1768273736742,0.96584951,3103.6,3102.9,1.10937183]
[1768273736941,3.47880537,3103.8,3102.9,1.10937183]
[1768273737238,0.96584762,3103.7,3102.9,1.10937183]
[1768273737443,1.10937183,3103.4,3102.7,0.0048292]
[1768273737646,0.96584762,3103.3,3102.7,0.0048292]
[1768273737942,1.10937183,3103.4,3102.7,0.0048292]
[1768273738141,0.96578007,3103.3,3102.7,0.0048292]
[1768273738342,1.10937183,3103.4,3102.7,0.0048292]
[1768273738543,0.96580925,3103.3,3102.7,0.0048292]
[1768273738742,1.10937183,3103.4,3102.7,0.0048292]
[1768273738941,0.96580925,3103.3,3102.7,0.0048292]
[1768273739142,1.10937183,3103.4,3102.5,1.10937183]
[1768273739341,0.96580926,3103.3,3102.5,1.10937183]
[1768273739542,3.47880537,3103.6,3102.7,1.10937183]
[1768273739741,0.96583729,3103.5,3103.1,1.10937183]
[1768273739942,2.36943354,3104.0,3103.3,1.10937183]
[1768273740742,2.36943354,3104.0,3103.1,1.10937183]
[1768273743241,4.68587136,3104.4,3103.7,1.10937183]
[1768273743450,2.37252306,3104.4,3103.7,1.10937183]
[1768273744245,2.37735226,3104.4,3103.7,1.10937183]
[1768273744747,1.10937183,3104.3,3102.7,2.21486938]
[1768273744953,3.48471313,3104.1,3103.3,1.10937183]
[1768273745253,1.10937183,3103.7,3102.4,0.00258169]
[1768273745555,1.10937183,3103.3,3102.4,0.00258169]
[1768273745853,3.48471313,3103.5,3102.5,1.10937183]
[1768273746752,2.3753413,3103.5,3102.5,1.10937183]
[1768273748059,3.48471313,3103.5,3102.5,1.10937183]
[1768273749452,3.48471313,3103.5,3102.4,0.00258169]
[1768273749453,2.3753413,3103.4,3102.6,1.10937183]
[1768273750356,1.10937183,3103.7,3102.8,1.10937183]
[1768273751056,3.48471313,3103.7,3102.8,1.10937183]
[1768273752055,0.96114565,3103.6,3102.8,1.10937183]
[1768273752250,3.48471313,3103.7,3102.4,0.00258169]
[1768273752251,0.96114565,3103.5,3102.4,0.00258169]
[1768273752550,3.33648695,3103.4,3102.7,1.10937183]
[1768273752857,3.33648695,3103.3,3102.5,1.10937183]
[1768273753055,0.96114565,3103.2,3102.5,1.10937183]
[1768273753350,2.3753413,3103.3,3102.5,1.10937183]
[1768273753553,2.3753413,3103.3,3102.7,1.10937183]
[1768273753855,3.48437917,3103.7,3102.7,1.10937183]
[1768273754045,0.96103565,3103.6,3102.7,1.10937183]
[1768273754245,3.48437917,3103.7,3102.7,1.10937183]
[1768273754246,0.96103565,3103.5,3102.7,1.10937183]
[1768273754450,0.96103565,3103.4,3102.7,1.10937183]
[1768273754650,0.96103565,3103.3,3102.7,1.10937183]
[1768273754850,2.37500734,3103.6,3102.7,1.10937183]
[1768273755051,0.9609856,3103.5,3102.7,1.10937183]
[1768273755251,0.9609856,3103.4,3102.4,0.00258169]
[1768273755451,0.9609856,3103.3,3102.7,1.10937183]
[1768273755651,2.37500734,3103.6,3102.7,1.10937183]
[1768273755964,3.33621111,3103.5,3102.7,1.10937183]
[1768273756256,0.96120377,3103.4,3102.7,1.10937183]
[1768273756861,0.96120377,3103.4,3102.4,0.00258169]
[1768273756862,2.37500734,3103.3,3102.4,0.00258169]
[1768273757052,2.37500734,3103.0,3102.4,0.00258169]
[1768273757246,2.57584099,3104.5,3102.9,2.21874366]
[1768273757451,0.96135147,3104.3,3103.4,1.10937183]
[1768273757756,0.96135147,3104.2,3103.4,1.10937183]
[1768273757955,0.96135147,3104.1,3103.4,1.10937183]
[1768273758160,0.96135147,3104.0,3103.4,1.10937183]
[1768273758345,1.10937183,3104.5,3103.4,1.10937183]
[1768273758553,0.95912171,3104.3,3103.4,1.10937183]
[1768273758752,0.95912171,3104.2,3103.4,1.10937183]
[1768273758952,0.95912171,3104.1,3103.4,1.10937183]
[1768273759149,0.95912171,3104.0,3103.4,1.10937183]
[1768273759449,2.38292606,3104.4,3103.4,1.10937183]
[1768273759644,3.33401188,3104.3,3103.4,1.10937183]
[1768273759848,0.95900454,3104.2,3103.4,1.10937183]
[1768273760165,0.95900454,3104.1,3103.4,1.10937183]
[1768273760356,0.95900454,3104.0,3103.4,1.10937183]
[1768273760554,3.48437917,3104.3,3103.4,1.10937183]
[1768273760753,0.95887829,3104.2,3103.4,1.10937183]
[1768273760956,0.95887829,3104.1,3103.4,1.10937183]
[1768273761255,2.37500734,3104.3,3103.4,1.10937183]
[1768273761256,0.95887829,3104.0,3103.4,1.10937183]
[1768273761456,2.37500734,3104.3,3103.4,1.10937183]
[1768273761661,0.9587585,3104.2,3103.4,1.10937183]
[1768273761858,0.9587585,3104.1,3103.4,1.10937183]
[1768273762055,0.9587585,3104.0,3103.4,1.10937183]
[1768273762252,2.37500734,3104.3,3103.4,1.10937183]
[1768273762454,0.95865364,3104.2,3103.4,1.10937183]
[1768273762753,0.95865364,3104.1,3102.5,2.4043024]
[1768273762954,0.95865364,3104.0,3103.5,1.10937183]
[1768273763155,2.37500734,3104.3,3103.5,1.10937183]
[1768273763356,0.95856635,3104.2,3103.5,1.10937183]
[1768273763555,0.95856635,3104.1,3103.5,1.10937183]
[1768273763755,0.95856635,3104.0,3103.5,1.10937183]
[1768273763959,2.37500734,3104.3,3103.5,1.10937183]
[1768273764157,0.95852071,3104.2,3103.5,1.10937183]
[1768273764358,0.95852071,3104.1,3103.5,1.10937183]
[1768273764563,2.37500734,3104.3,3103.5,1.10937183]
[1768273764751,0.95843583,3104.2,3103.5,1.10937183]
[1768273764954,0.95843583,3104.1,3103.5,1.10937183]
[1768273765160,2.37500734,3104.3,3103.5,1.10937183]
[1768273765365,0.95840122,3104.2,3103.5,1.10937183]
[1768273765552,0.95840122,3104.1,3103.5,1.10937183]
[1768273765750,2.37500734,3104.3,3103.5,1.10937183]
[1768273765955,0.9583809,3104.2,3103.5,1.10937183]
[1768273766157,0.9583809,3104.1,3103.5,1.10937183]
[1768273766358,2.37500734,3104.3,3103.5,1.10937183]
[1768273766560,0.95830569,3104.2,3103.5,1.10937183]
[1768273766758,0.95830569,3104.1,3103.5,1.10937183]
[1768273766956,2.37500734,3104.3,3103.5,1.10937183]
[1768273767160,0.95830194,3104.2,3103.5,1.10937183]
[1768273767363,0.95830194,3104.1,3103.4,1.10937183]
[1768273767564,2.37500734,3104.3,3103.4,1.10937183]
[1768273767771,0.95818291,3104.2,3103.4,1.10937183]
[1768273767967,0.95818291,3104.1,3103.4,1.10937183]
[1768273768169,2.37500734,3104.3,3103.4,1.10937183]
[1768273768371,0.95817569,3104.2,3103.4,1.10937183]
[1768273768573,0.95817569,3104.1,3103.4,1.10937183]
[1768273768773,2.37500734,3104.3,3103.4,1.10937183]
[1768273769068,0.95815536,3104.2,3103.4,1.10937183]
[1768273769262,0.95815536,3104.1,3103.4,1.10937183]
[1768273769562,2.37500734,3104.3,3103.4,1.10937183]
[1768273769762,0.95814046,3104.2,3103.4,1.10937183]
[1768273769964,0.95814046,3104.1,3103.4,1.10937183]
[1768273770164,2.37500734,3104.3,3103.4,1.10937183]
[1768273770362,0.95814704,3104.2,3103.4,1.10937183]
[1768273770567,0.95814704,3104.1,3103.4,1.10937183]
[1768273770767,2.37500734,3104.3,3103.4,1.10937183]
[1768273770968,2.06751165,3104.2,3103.2,1.10937183]
[1768273771174,3.33314716,3104.1,3103.2,1.10937183]
[1768273771478,3.48437917,3103.8,3102.8,1.10937183]
[1768273771879,0.95797636,3103.7,3102.8,1.10937183]
[1768273772180,3.48437917,3103.8,3102.8,1.10937183]
[1768273772379,0.9579758,3103.7,3102.8,1.10937183]
[1768273772568,2.37500734,3103.7,3102.4,0.16393169]
[1768273772773,2.37500734,3103.7,3102.9,1.10937183]
[1768273774782,2.37500734,3103.7,3102.7,1.10937183]
[1768273775782,4.39430571,3103.6,3102.7,1.10937183]
[1768273775983,3.28493388,3103.5,3102.7,1.10937183]
[1768273776184,2.32695057,3103.5,3102.7,1.10937183]
[1768273777572,2.32695057,3103.5,3102.4,0.00258169]
[1768273777776,2.32695057,3103.5,3102.5,1.10937183]
[1768273779785,2.32695057,3103.5,3102.6,1.10937183]
[1768273784085,0.95864985,3103.4,3102.6,1.10937183]
[1768273784284,2.32695057,3103.5,3102.6,1.10937183]
[1768273784486,0.95864836,3103.4,3102.6,1.10937183]
[1768273784687,2.32695057,3103.5,3102.6,1.10937183]
[1768273784887,0.95864881,3103.4,3102.6,1.10937183]
[1768273785088,2.32695057,3103.5,3102.6,1.10937183]
[1768273785285,0.9586945,3103.4,3102.4,1.11206581]
[1768273785481,2.32695057,3103.5,3102.4,1.11206581]
[1768273785680,0.95869491,3103.4,3102.9,1.10948412]
[1768273785883,2.32695057,3104.3,3103.2,2.21896824]
[1768273786083,0.95891085,3104.2,3103.5,1.10948412]
[1768273786387,0.95891085,3104.1,3103.2,1.10948412]
[1768273786584,0.95891085,3104.0,3103.2,1.10948412]
[1768273786784,2.33486929,3104.4,3103.2,1.10948412]
[1768273786985,0.95898408,3104.3,3103.2,1.10948412]
[1768273787184,0.95898408,3104.2,3103.4,1.10948412]
[1768273787387,0.95898408,3104.1,3103.4,1.10948412]
[1768273787686,0.95898408,3104.0,3103.4,1.10948412]
[1768273787888,2.33486929,3104.4,3103.4,1.10948412]
[1768273788085,0.95822304,3104.3,3103.4,1.10948412]
[1768273788286,0.95822304,3104.2,3103.4,1.10948412]
[1768273788486,2.33486929,3104.4,3103.4,1.10948412]
[1768273788487,0.95822304,3104.1,3103.4,1.10948412]
[1768273788682,0.95822304,3104.0,3103.4,1.10948412]
[1768273788882,2.33486929,3104.4,3103.4,1.10948412]
[1768273789091,0.95821978,3104.3,3103.4,1.10948412]
[1768273789288,0.95821978,3104.2,3102.7,2.46383241]
[1768273789488,0.95821978,3104.1,3103.4,1.10948412]
[1768273789688,3.28517035,3104.0,3103.0,1.10948412]
[1768273789884,2.32695057,3104.0,3103.0,1.10948412]
[1768273790087,3.28510889,3103.9,3102.8,1.10948412]
[1768273790391,2.32695057,3103.9,3102.8,1.10948412]
[1768273792792,2.32695057,3103.7,3102.8,1.10948412]
[1768273792994,2.32695057,3103.7,3102.6,1.10948412]
[1768273794189,2.32695057,3103.5,3102.5,1.10948412]
[1768273799595,2.32695057,3103.5,3102.7,1.10948412]
[1768273800394,2.32695057,3104.0,3102.7,1.10948412]
[1768273800597,3.28549042,3103.9,3102.7,1.10948412]
[1768273800793,0.95853985,3103.8,3102.7,1.10948412]
[1768273801190,0.95853985,3103.8,3103.4,1.10948412]
[1768273801491,0.95853985,3103.7,3103.4,1.10948412]
[1768273801690,2.32695057,3104.3,3103.4,1.10948412]
[1768273801893,0.95879569,3104.2,3103.4,1.10948412]
[1768273802088,0.95879569,3104.1,3103.4,1.10948412]
[1768273802289,0.95879569,3104.0,3103.2,1.10948412]
[1768273802489,0.95879569,3103.9,3103.2,1.10948412]
[1768273802692,0.95879569,3103.8,3103.2,1.10948412]
[1768273802893,0.95879569,3103.7,3103.2,1.10948412]
[1768273803096,2.32695057,3104.3,3103.2,1.10948412]
[1768273803390,3.28573339,3104.2,3103.2,1.10948412]
[1768273803594,0.95878282,3104.1,3103.2,1.10948412]
[1768273805297,0.95878282,3104.1,3103.5,1.10948412]
[1768273806097,0.00791872,3104.4,3103.8,1.10948412]
[1768273806290,0.95885815,3104.3,3103.8,1.10948412]
[1768273806491,0.00791872,3104.4,3103.8,1.10948412]
[1768273806690,0.95867137,3104.3,3103.8,1.10948412]
[1768273806998,0.00791872,3104.4,3103.8,1.10948412]
[1768273807192,0.95865643,3104.3,3103.8,1.10948412]
[1768273807498,0.00791872,3104.4,3103.8,1.10948412]
[1768273808491,0.00791872,3104.4,3103.1,2.35098569]
[1768273808691,0.00791872,3104.4,3103.5,1.10948412]
[1768273811001,2.46005588,3104.4,3103.3,1.10948412]
[1768273812605,2.46005588,3104.4,3103.5,1.10948412]
[1768273812794,2.46005588,3104.4,3103.3,1.10948412]
[1768273814704,0.00791872,3104.4,3103.3,1.10948412]
[1768273815202,0.00791872,3104.4,3103.7,1.10948412]
[1768273816500,2.35643506,3105.2,3104.3,1.10948412]
[1768273816706,0.9580601,3105.1,3104.3,1.10948412]
[1768273816906,0.9580601,3105.0,3104.3,1.10948412]
[1768273817211,0.9580601,3104.9,3104.3,1.10948412]
[1768273817506,0.00269376,3104.9,3104.3,1.10948412]
[1768273818404,0.00269376,3104.9,3104.1,1.10948412]
[1768273820809,0.00269376,3104.9,3103.9,1.10948412]
[1768273821107,2.35643506,3104.8,3103.7,0.0048292]
[1768273821603,0.95571395,3104.7,3103.7,0.0048292]
[1768273821807,2.35643506,3104.7,3103.7,0.0048292]
[1768273823306,0.00269376,3104.9,3103.8,1.10948412]
[1768273824696,2.35912882,3104.9,3103.8,1.10948412]
[1768273824901,3.31206281,3104.8,3103.7,0.0048292]
[1768273825101,2.35643506,3104.8,3103.7,0.0048292]
[1768273825905,2.35643506,3104.6,3103.7,0.0048292]
[1768273831613,1.10948412,3104.2,3102.8,1.10948412]
[1768273831814,3.31362956,3104.1,3103.1,1.10948412]
[1768273832122,2.35643506,3104.1,3103.1,1.10948412]
[1768273832310,0.95698437,3104.0,3103.1,1.10948412]
[1768273832616,2.35643506,3104.1,3103.1,1.10948412]
[1768273832817,0.95713402,3104.0,3103.1,1.10948412]
[1768273833017,2.35643506,3104.1,3103.1,1.10948412]
[1768273833319,0.95713383,3104.0,3103.1,1.10948412]
[1768273833613,2.3133483,3104.8,3102.4,0.00258169]
[1768273833614,2.89565157,3108.0,3104.0,0.16127]
[1768273833809,1.2388623,3108.3,3106.7,0.16113]
[1768273834007,2.35643506,3109.7,3108.0,1.10948412]
[1768273834203,1.83260002,3109.7,3108.4,1.10948412]
[1768273834411,3.73696489,3109.4,3108.5,0.50368677]
[1768273834625,0.00388041,3109.4,3108.6,0.50368677]
[1768273834915,0.00388041,3109.4,3108.7,0.50368677]
[1768273835117,0.00388041,3109.4,3108.8,0.50368677]
[1768273835320,3.31799542,3109.3,3108.9,0.50368677]
[1768273835518,3.31799542,3109.3,3108.1,1.6907189]
[1768273835712,0.00388041,3109.4,3108.1,1.6907189]
[1768273835910,0.00388041,3109.4,3107.5,0.16109]
[1768273835911,0.00388041,3109.4,3107.9,0.971]
[1768273836615,0.00388041,3109.4,3107.9,0.97490017]
[1768273839625,2.46282125,3109.4,3107.9,0.00390017]
[1768273839922,2.46282125,3109.4,3108.0,1.282]
[1768273840118,5.78081667,3109.4,3107.9,0.00390017]
[1768273840322,2.45894084,3109.3,3107.9,0.00390017]
[1768273841524,5.77693626,3109.1,3107.9,0.00390017]
[1768273843213,2.45894084,3109.0,3107.9,0.00390017]
[1768273847427,0.00388041,3109.4,3108.0,1.23796742]
[1768273847625,0.00388041,3109.4,3108.7,1.49259014]
[1768273847828,0.00388041,3109.4,3108.8,0.49073143]
[1768273848018,0.00388041,3109.4,3108.9,0.49073143]
[1768273848219,0.00388041,3109.4,3109.0,0.49073143]
[1768273848420,0.00388041,3109.4,3109.1,0.49073143]
[1768273848625,0.00388041,3109.4,3109.2,0.49073143]
[1768273848827,2.45894084,3109.8,3109.3,0.49073143]
[1768273849023,3.31799542,3109.6,3109.4,0.49073143]
[1768273849222,3.31799542,3109.6,3109.5,0.49073143]
[1768273849620,2.45894084,3109.8,3108.7,1.49259014]
[1768273849826,2.82726399,3109.5,3108.7,1.49259014]
[1768273850430,2.82726399,3109.5,3108.6,1.49259014]
[1768273850732,2.4629285,3109.8,3108.6,1.49259014]
[1768273850932,2.82726399,3109.5,3108.6,1.49259014]
[1768273851136,2.82726399,3109.5,3108.5,1.49259014]
[1768273851426,2.4629285,3109.8,3108.5,1.49259014]
[1768273851624,2.82726399,3109.5,3108.5,1.49259014]
[1768273853933,2.4629285,3109.8,3108.5,1.49259014]
[1768273854124,2.82726399,3109.6,3108.5,1.49259014]
[1768273854326,5.28620483,3109.6,3108.5,1.49259014]
[1768273857434,2.45894084,3109.5,3108.4,2.77259014]
[1768273857633,2.45894084,3109.5,3108.3,1.49259014]
[1768273857827,2.82726399,3109.3,3108.3,2.77259014]
[1768273858031,2.45894084,3109.2,3107.9,0.00390017]
[1768273859337,2.45894084,3109.2,3108.1,1.49259014]
[1768273860443,2.45894084,3109.2,3108.4,1.49259014]
[1768273860639,2.82726399,3109.1,3108.4,1.49259014]
[1768273861240,2.61786115,3109.1,3108.4,1.49259014]
[1768273861634,2.61786115,3109.1,3108.5,0.42367384]
[1768273861835,2.61786115,3109.1,3108.6,0.42367384]
[1768273862034,2.30377618,3109.1,3108.7,0.42367384]
[1768273862241,2.30377618,3109.1,3108.4,1.49259014]
[1768273862242,2.30377618,3109.1,3108.8,0.42367384]
[1768273862438,2.30377618,3109.1,3108.9,0.42367384]
[1768273862639,2.30377618,3109.1,3109.0,0.42367384]
[1768273863440,1.78030109,3109.1,3108.4,1.49259014]
[1768273865343,2.67154177,3109.7,3109.0,1.49259014]
[1768273865546,2.67154177,3109.7,3108.7,1.49259014]
[1768273866849,2.67154177,3109.7,3108.4,1.28]
[1768273867047,2.67154177,3109.7,3108.6,1.49259014]
[1768273868742,2.67154177,3109.7,3108.0,0.16106]
[1768273868743,2.67154177,3109.7,3108.4,1.281]
[1768273868946,2.67154177,3109.7,3108.3,2.77259014]
[1768273869543,2.67154177,3109.7,3108.3,1.49259014]
[1768273874250,2.5169352,3109.3,3108.2,2.26072221]
[1768273874562,2.512106,3109.1,3107.9,0.00390017]
[1768273874770,2.512106,3109.1,3107.9,1.49649031]
[1768273875450,2.512106,3109.1,3108.2,1.49259014]
[1768273876558,2.512106,3109.1,3107.9,0.00390017]
[1768273876759,2.512106,3109.1,3108.1,1.49259014]
[1768273882655,2.512106,3109.1,3107.9,0.00390017]
[1768273882859,2.512106,3109.1,3108.0,2.77359014]
[1768273883363,2.512106,3109.1,3108.5,1.10536908]
[1768273884662,2.512106,3109.1,3107.9,0.00390017]
[1768273884957,2.512106,3108.9,3108.1,1.10536908]
[1768273887462,2.512106,3108.9,3107.9,0.00390017]
[1768273892666,2.512106,3108.8,3107.2,2.26072221]
[1768273893869,2.512106,3108.8,3107.2,2.26401079]
[1768273894170,2.512106,3108.5,3107.2,0.00328858]
[1768273906073,4.00476413,3108.5,3107.2,0.00328858]
[1768273906383,2.70675798,3108.4,3107.2,0.00328858]
[1768273907378,2.70675798,3108.1,3106.7,3.36716433]
[1768273908177,0.0048292,3107.7,3106.9,1.10644212]
[1768273908381,0.0048292,3107.7,3106.9,1.11050227]
[1768273910782,2.71158718,3107.7,3106.9,1.11050227]
[1768273910971,2.71158718,3107.7,3106.9,0.00406015]
[1768273920586,2.71158718,3107.7,3107.0,1.10644212]
[1768273920779,0.0048292,3107.7,3107.0,1.10644212]
[1768273928095,0.0048292,3107.7,3106.9,0.00406015]
[1768273928597,3.07965713,3107.7,3106.9,0.00406015]
[1768273940611,3.07965713,3107.7,3106.7,1.10644212]
[1768273940910,3.07965713,3107.7,3106.7,3.36716433]
[1768273941312,3.07965713,3107.7,3106.7,1.10644212]
[1768273941521,3.07965713,3107.7,3106.7,1.10900914]
[1768273941813,3.07965713,3107.7,3106.7,3.36973135]
[1768273942305,3.07965713,3107.7,3106.7,1.10900914]
[1768273946719,3.07965713,3107.7,3106.7,0.00256702]
[1768273955927,4.81365713,3107.7,3106.7,0.00256702]
[1768273956125,3.06708029,3107.6,3106.7,0.00256702]
[1768273956424,3.07047663,3107.6,3106.7,0.00256702]
[1768273958028,3.06708029,3108.8,3107.5,1.10644212]
[1768273958226,3.89758903,3108.7,3107.9,1.10644212]
[1768273958415,0.83050874,3108.6,3107.9,1.10644212]
[1768273958618,3.06708029,3108.7,3107.7,1.10644212]
[1768273958823,3.06708029,3108.7,3107.4,3.36716433]
[1768273959024,3.07115936,3108.7,3107.7,1.10644212]
[1768273959228,3.07115936,3108.7,3107.6,1.10644212]
[1768273959619,0.0048292,3108.5,3107.6,1.10644212]
[1768273961624,0.0048292,3108.5,3107.3,2.26072221]
[1768273961825,3.07190949,3108.5,3107.3,2.26072221]
[1768273962221,3.07190949,3108.5,3107.3,3.36716433]
[1768273962422,3.07190949,3108.5,3107.3,1.10644212]
[1768273967437,3.07190949,3108.5,3107.7,1.10592106]
[1768273972636,3.06708029,3111.1,3109.2,3.15342929]
[1768273972940,3.06708029,3111.1,3109.8,1.10592106]
[1768273973136,3.06708029,3111.1,3110.3,1.10592106]
[1768273973441,3.06708029,3111.1,3109.8,1.10592106]
[1768273973639,3.06982011,3111.1,3110.3,1.10592106]
[1768273974236,3.06982011,3111.1,3110.1,0.0048292]
[1768273974531,3.06982011,3111.1,3110.4,1.10592106]
[1768273975040,3.06982011,3111.1,3110.1,0.0048292]
[1768273975231,3.06982011,3111.1,3110.4,1.10592106]
[1768273976237,4.17574117,3111.1,3110.1,0.0048292]
[1768273976438,3.06982011,3111.1,3110.3,1.10592106]
[1768273977138,3.06982011,3111.1,3110.2,1.10592106]
[1768273977738,3.06982011,3111.1,3110.4,1.10592106]
[1768273980134,4.17300135,3111.0,3110.1,0.0048292]
[1768273980545,1.10592106,3110.8,3110.1,0.0048292]
[1768273980747,4.17300135,3110.8,3110.1,0.0048292]
[1768273981135,3.06708029,3110.8,3110.1,0.0048292]
[1768273983542,0.00273982,3111.1,3110.2,1.10592106]
[1768273983743,0.00273982,3111.1,3110.4,1.10592106]
[1768273985742,3.13453017,3111.1,3110.4,1.10592106]
[1768273987453,3.13453017,3111.1,3110.1,0.0048292]
[1768273987651,3.13453017,3111.1,3110.4,1.10592106]
[1768273987851,4.23771141,3110.9,3110.1,0.0048292]
[1768273988046,3.13179035,3110.9,3110.2,1.10592106]
[1768273988447,0.00273982,3111.1,3110.4,1.10592106]
[1768273988754,0.00273982,3111.1,3110.1,0.0048292]
[1768273988957,0.00273982,3111.1,3110.4,1.10592106]
[1768273989450,0.00273982,3111.1,3110.2,1.10592106]
[1768273989451,4.23771141,3111.0,3110.2,1.10592106]
[1768273996155,3.13179035,3111.0,3110.2,1.10592106]